bitfinex/quotes_ETHUSD_20250217
["timestamp","ask_amount","ask_price","bid_price","bid_amount"]
[1739770710800,0.8055,2662.0,2661.5,3.75727]
[1739770711034,0.8055,2662.0,2661.6,3.7571]
[1739770711216,3.36117728,2661.9,2661.6,3.7571]
[1739770711636,3.36117728,2661.9,2661.4,3.7573]
[1739770711942,0.03830405,2661.8,2661.4,3.7573]
[1739770712342,0.09657152,2661.7,2661.4,3.7573]
[1739770712642,0.75141,2661.7,2661.2,3.7576]
[1739770712804,0.13487557,2661.6,2661.3,3.75754]
[1739770713001,0.13487557,2661.6,2661.2,3.7576]
[1739770713208,0.7748,2661.5,2661.2,3.7576]
[1739770713439,0.09685908,2661.4,2661.2,3.7576]
[1739770713841,0.09685908,2661.4,2661.3,3.75756]
[1739770714728,0.09685908,2661.4,2661.2,3.7576]
[1739770715150,0.03830405,2661.3,2661.0,3.7579]
[1739770715540,0.09685908,2661.2,2661.0,3.7579]
[1739770715741,0.03830405,2661.4,2661.0,3.7579]
[1739770715941,0.09685908,2661.3,2661.0,3.7579]
[1739770716366,0.09685908,2661.3,2660.8,3.75817]
[1739770716539,0.09685908,2661.3,2660.9,3.75809]
[1739770716540,3.45803636,2661.3,2660.9,3.75809]
[1739770716745,0.03830405,2661.2,2660.9,3.75809]
[1739770717070,3.36117728,2661.4,2661.3,3.75756]
[1739770719864,3.36117728,2662.2,2662.1,3.75643]
[1739770723207,3.45448803,2662.2,2662.1,3.75643]
[1739770723871,3.45448803,2662.2,2662.0,7.51296]
[1739770724274,3.45448803,2662.2,2662.1,3.75643]
[1739770725560,3.45448803,2662.2,2662.0,3.75647]
[1739770725756,3.45448803,2662.2,2662.1,3.75643]
[1739770726613,3.45448803,2662.2,2662.1,4.5038011]
[1739770728814,0.09331075,2662.2,2662.1,4.5038011]
[1739770729111,0.81310405,2662.6,2662.2,3.75626]
[1739770729616,0.81310405,2662.6,2662.2,7.51247]
[1739770729767,0.81310405,2662.6,2662.2,3.75621]
[1739770730785,0.81310405,2662.6,2662.1,0.7473711]
[1739770730786,1.56426405,2662.6,2662.1,0.7473711]
[1739770730982,1.56426405,2662.6,2662.1,4.5037211]
[1739770731370,0.81310405,2662.6,2662.2,7.5125]
[1739770731716,0.7748,2662.6,2662.3,3.75611]
[1739770731873,0.7748,2662.6,2662.3,3.75607]
[1739770732073,3.36117728,2662.5,2662.4,3.756]
[1739770734121,3.36117728,2662.5,2662.3,3.75613]
[1739770734304,3.36117728,2662.5,2662.3,7.51221]
[1739770734505,3.36117728,2662.5,2662.3,3.75608]
[1739770734917,3.36117728,2662.5,2662.3,3.75606]
[1739770735118,3.36117728,2662.5,2662.4,3.756]
[1739770737822,3.45603546,2662.5,2662.4,3.756]
[1739770739924,3.45603546,2662.5,2662.3,3.75614]
[1739770740114,3.45603546,2662.5,2662.4,3.756]
[1739770740623,3.45603546,2662.5,2662.3,4.28939111]
[1739770740848,3.45603546,2662.5,2662.3,3.75606]
[1739770741047,3.45603546,2662.5,2662.1,5.3334811]
[1739770741347,0.03830405,2662.4,2662.1,5.3334811]
[1739770741558,3.49433951,2662.5,2662.2,3.7562]
[1739770741861,3.36117728,2662.5,2662.3,3.7561]
[1739770742346,0.09516396,2662.4,2662.3,3.75615]
[1739770743315,0.09516396,2662.4,2662.3,5.37332911]
[1739770743854,3.36117728,2662.8,2662.4,3.756]
[1739770744161,3.36117728,2662.8,2662.7,3.75558]
[1739770744804,3.36117728,2662.8,2662.4,3.75591]
[1739770745350,3.36117728,2662.8,2662.5,3.7558]
[1739770745923,3.36117728,2662.8,2662.6,3.75569]
[1739770746706,3.36117728,2662.8,2662.7,0.76509102]
[1739770746932,4.16667728,2662.8,2662.4,3.75591]
[1739770747261,4.16667728,2662.8,2662.5,3.75583]
[1739770747847,4.16667728,2662.8,2662.6,0.75132661]
[1739770748155,3.36117728,2662.8,2662.6,4.50704661]
[1739770748361,3.36117728,2662.8,2662.6,0.75132661]
[1739770748829,3.36117728,2662.8,2662.6,4.50703661]
[1739770749225,3.36117728,2662.8,2662.6,0.75132661]
[1739770749418,3.36117728,2662.8,2662.7,3.75558]
[1739770750542,3.36117728,2662.8,2662.7,5.37304066]
[1739770751052,3.36117728,2663.1,2662.7,5.37304066]
[1739770751241,3.36117728,2663.1,2663.0,3.75516]
[1739770752632,3.36117728,2663.1,2663.0,4.49268368]
[1739770753025,3.36117728,2663.1,2663.0,5.31748005]
[1739770755920,3.36117728,2663.1,2663.0,4.49268368]
[1739770756120,3.36117728,2663.1,2663.0,0.73752368]
[1739770756457,3.36117728,2663.1,2663.0,4.49268368]
[1739770760636,3.36117728,2663.1,2663.0,5.26578368]
[1739770761637,3.36117728,2663.5,2663.0,1.51062368]
[1739770761973,0.09628775,2663.4,2663.3,3.7547]
[1739770762278,0.09628775,2663.4,2663.1,3.75495]
[1739770762575,0.09628775,2663.4,2663.0,0.73752368]
[1739770762775,0.1345918,2663.4,2663.0,4.49260368]
[1739770763473,0.09628775,2663.4,2663.0,4.49260368]
[1739770764177,0.03830405,2663.3,2663.0,4.49260368]
[1739770764541,0.09664724,2663.2,2663.1,3.75502]
[1739770764985,3.36117728,2663.5,2663.1,3.75502]
[1739770765193,0.09697977,2663.2,2663.1,3.75502]
[1739770765388,3.36117728,2663.5,2663.1,3.75502]
[1739770765849,0.09697977,2663.4,2663.1,3.75502]
[1739770766045,0.3765,2663.3,2663.2,3.75482]
[1739770766254,0.03830405,2663.4,2663.0,0.73752368]
[1739770766612,0.09697977,2663.3,2663.0,0.73752368]
[1739770767151,0.09697977,2663.3,2663.0,4.49260368]
[1739770767457,0.09697977,2663.3,2663.2,3.75488]
[1739770767683,3.36117728,2663.5,2663.1,3.755]
[1739770768020,0.09699774,2663.3,2663.2,3.75488]
[1739770768207,3.36117728,2663.5,2663.2,3.75488]
[1739770768354,0.09699774,2663.3,2663.2,3.75488]
[1739770768553,3.36117728,2663.5,2663.0,1.51062368]
[1739770768778,3.39948133,2663.5,2663.1,3.7549]
[1739770768958,3.39948133,2663.5,2663.1,3.75502]
[1739770769188,0.09699774,2663.4,2663.1,3.75502]
[1739770769991,0.09699774,2663.4,2663.2,3.75477]
[1739770770590,3.45817502,2663.4,2663.3,3.75474]
[1739770772783,3.45817502,2663.4,2663.1,0.7835]
[1739770772984,3.45817502,2663.4,2663.1,4.53843]
[1739770773183,3.45817502,2663.4,2663.2,3.75485]
[1739770773600,3.45817502,2663.4,2663.2,3.75486]
[1739770773774,3.45817502,2663.4,2663.1,4.53843]
[1739770773970,3.45817502,2663.4,2663.3,3.75474]
[1739770774172,3.36117728,2663.4,2663.3,3.75474]
[1739770774591,3.45817502,2663.4,2663.3,3.75474]
[1739770778356,3.45817502,2663.4,2663.0,0.73752368]
[1739770778357,3.45817502,2663.4,2663.0,4.49261368]
[1739770778476,0.03830405,2663.3,2663.1,3.75498]
[1739770778870,0.0972134,2663.2,2663.1,3.75498]
[1739770779201,0.03830405,2663.3,2663.0,4.49261368]
[1739770779505,0.0972134,2663.2,2663.0,8.24766368]
[1739770779679,0.0972134,2663.2,2663.0,0.73752368]
[1739770779880,0.78924405,2663.3,2663.0,0.73752368]
[1739770780095,0.0972134,2663.1,2663.0,0.73752368]
[1739770780279,0.03830405,2663.3,2663.0,0.73752368]
[1739770780481,0.0972134,2663.1,2663.0,0.73752368]
[1739770780799,0.03830405,2663.3,2663.0,0.73752368]
[1739770780974,0.0972134,2663.1,2663.0,0.73752368]
[1739770781181,0.78926405,2663.3,2662.7,0.7835]
[1739770781504,0.78926405,2663.3,2662.6,3.75565]
[1739770781505,0.7899,2663.0,2662.6,7.5113]
[1739770781802,4.18938133,2663.0,2662.6,3.75565]
[1739770781987,4.94043133,2663.0,2662.4,4.53941]
[1739770782199,0.0972134,2662.9,2662.6,3.75565]
[1739770782380,0.13551745,2662.9,2662.5,3.75586]
[1739770782775,0.13551745,2662.9,2662.5,3.75576]
[1739770782980,0.13551745,2662.9,2662.7,0.7443441]
[1739770783613,0.3765,2662.7,2661.5,0.8228]
[1739770783829,0.8055,2662.2,2661.6,3.757]
[1739770784025,0.84380405,2662.2,2661.6,3.757]
[1739770784224,0.09666519,2662.1,2661.9,3.75662]
[1739770784434,0.09666519,2662.1,2661.7,7.97186]
[1739770784632,0.09666519,2662.1,2661.8,3.75684]
[1739770784833,0.03830405,2662.0,2661.7,4.21487]
[1739770784996,0.03830405,2662.0,2661.5,3.75718]
[1739770785198,0.03830405,2662.0,2661.3,4.58028]
[1739770785377,1.65351519,2661.9,2661.3,7.51495]
[1739770785582,0.90216519,2661.9,2661.4,3.75731]
[1739770786890,0.94046924,2661.9,2661.4,3.7574]
[1739770787087,0.90216519,2661.9,2661.4,3.7574]
[1739770787315,0.90216519,2661.9,2661.3,4.49993444]
[1739770787542,0.90216519,2661.9,2661.4,3.75741]
[1739770787742,0.90216519,2661.9,2661.3,4.49993444]
[1739770787887,0.75137,2661.8,2661.3,4.49993444]
[1739770788087,0.03830405,2661.7,2661.3,0.74246444]
[1739770788543,0.09666519,2661.6,2661.3,0.74246444]
[1739770788837,3.45784247,2661.6,2661.3,0.74246444]
[1739770789524,3.45784247,2661.6,2661.3,4.49990444]
[1739770793051,3.45784247,2661.6,2661.3,0.74246444]
[1739770793642,3.45784247,2661.6,2661.3,4.49999444]
[1739770795151,0.78975405,2661.5,2661.0,4.58077]
[1739770795343,0.8055,2661.4,2661.0,4.51374457]
[1739770795538,0.03830405,2661.3,2661.0,0.75577457]
[1739770795747,0.78982405,2661.3,2660.7,3.75829]
[1739770795933,0.78982405,2661.3,2660.8,3.75817]
[1739770796132,0.8465778,2661.2,2660.8,3.75817]
[1739770796453,0.03830405,2661.1,2660.8,3.75817]
[1739770796959,0.0950378,2661.0,2660.9,3.75812]
[1739770797119,0.0950378,2661.0,2660.8,3.75817]
[1739770797323,0.03830405,2661.2,2660.8,4.51464733]
[1739770797523,0.0950378,2660.9,2660.8,4.51464733]
[1739770798079,0.03830405,2661.2,2660.8,0.75647733]
[1739770798380,0.0950378,2661.1,2660.9,3.75811]
[1739770798975,0.03830405,2661.3,2660.9,3.75811]
[1739770799183,0.0950378,2661.0,2660.8,0.75647733]
[1739770799339,0.75154,2661.2,2660.8,0.75647733]
[1739770799657,0.03830405,2661.1,2660.8,0.75647733]
[1739770799861,0.0950378,2661.0,2660.8,0.75647733]
[1739770800224,3.45621508,2661.0,2660.6,3.75851]
[1739770800455,0.03830405,2660.9,2660.7,3.75839]
[1739770800630,4.21421508,2661.0,2660.8,3.75826]
[1739770800834,4.21421508,2661.0,2660.7,3.75839]
[1739770800835,0.0950378,2660.9,2660.7,3.75839]
[1739770801047,0.13334185,2660.9,2660.7,3.75833]
[1739770801253,0.13334185,2660.9,2660.6,4.49651318]
[1739770801464,0.0950378,2660.9,2660.7,3.75833]
[1739770801775,0.13334185,2660.9,2660.6,4.49651318]
[1739770801980,0.0950378,2660.9,2660.7,3.75839]
[1739770803075,0.0950378,2660.9,2660.6,4.49658318]
[1739770803455,0.13334185,2660.9,2660.6,4.49658318]
[1739770803642,0.0950378,2660.9,2660.6,4.49658318]
[1739770803841,0.0950378,2660.9,2660.7,3.75832]
[1739770804254,0.0950378,2660.9,2660.8,3.75826]
[1739770804975,0.0950378,2660.9,2660.7,3.75832]
[1739770805379,0.13334185,2660.9,2660.6,0.73804318]
[1739770805980,0.0950378,2660.9,2660.7,3.75838]
[1739770806353,3.45621508,2660.9,2660.8,3.75826]
[1739770808473,3.45621508,2660.9,2660.8,5.40632932]
[1739770808832,3.36117728,2660.9,2660.8,5.40632932]
[1739770809032,3.36117728,2660.9,2660.8,9.05114498]
[1739770809839,3.36117728,2661.5,2661.4,3.75742]
[1739770810185,3.45394798,2661.5,2661.4,3.75742]
[1739770810386,3.36117728,2661.5,2661.4,4.589336]
[1739770810584,3.45394798,2661.5,2661.4,4.589336]
[1739770811583,3.45394798,2661.5,2661.4,3.75742]
[1739770815100,3.45394798,2661.5,2661.4,4.52106429]
[1739770815423,0.0927707,2661.5,2661.4,4.52106429]
[1739770815789,0.03830405,2661.9,2661.7,3.75691]
[1739770815987,3.36117728,2661.9,2661.8,3.75685]
[1739770817289,3.45394798,2661.9,2661.8,3.75685]
[1739770817588,0.0927707,2661.9,2661.8,4.586166]
[1739770817817,0.0927707,2661.9,2661.8,5.365566]
[1739770818001,3.36117728,2662.2,2662.1,3.75643]
[1739770818435,3.45394798,2662.2,2662.1,3.75643]
[1739770819832,3.36117728,2662.2,2662.1,3.75643]
[1739770820007,3.36117728,2662.2,2662.1,5.65160957]
[1739770820745,3.36117728,2662.7,2662.6,3.75572]
[1739770821032,3.36117728,2663.0,2662.6,7.5113]
[1739770821201,0.09420116,2662.7,2662.6,3.75558]
[1739770821400,3.39948133,2663.0,2662.6,3.75558]
[1739770821401,3.39948133,2663.0,2662.6,3.75571]
[1739770821597,0.09420116,2662.7,2662.6,3.75571]
[1739770821841,3.39948133,2663.0,2662.5,3.75585]
[1739770822134,0.09420116,2662.9,2662.5,7.51163]
[1739770822336,0.03830405,2662.8,2662.6,3.75572]
[1739770822502,0.09420116,2662.9,2662.6,3.75572]
[1739770822920,0.13250521,2662.9,2662.6,3.75572]
[1739770823123,0.13250521,2662.9,2662.5,4.51839623]
[1739770823711,0.13250521,2662.9,2662.5,0.76261623]
[1739770823916,0.13250521,2662.9,2662.5,4.51844623]
[1739770824236,3.36117728,2662.8,2662.5,4.51844623]
[1739770824453,0.03830405,2662.7,2662.3,3.75607]
[1739770824606,0.7958,2662.6,2662.3,3.75607]
[1739770824805,0.89000116,2662.6,2662.3,3.75607]
[1739770825261,0.09420116,2662.6,2662.5,3.75586]
[1739770825559,4.15697728,2662.8,2662.5,3.75586]
[1739770825861,0.09576637,2662.6,2662.4,4.49670758]
[1739770826023,4.15697728,2662.8,2662.6,3.75571]
[1739770826428,4.15697728,2662.8,2662.4,0.74080758]
[1739770826620,4.15697728,2662.8,2662.5,3.75586]
[1739770827038,4.15697728,2662.8,2662.6,3.75567]
[1739770827246,3.36117728,2662.8,2662.7,3.75558]
[1739770829240,3.36117728,2662.8,2662.7,4.584649]
[1739770829829,3.36117728,2662.8,2662.5,3.7558]
[1739770830514,3.36117728,2662.8,2662.4,4.49670758]
[1739770831024,0.03830405,2662.7,2662.4,0.74080758]
[1739770831222,0.84380405,2662.7,2662.4,0.74080758]
[1739770832116,0.84380405,2662.7,2662.4,4.49668758]
[1739770832323,0.13036534,2662.6,2662.5,3.75579]
[1739770833432,0.13036534,2662.6,2662.4,4.49668758]
[1739770834420,0.13036534,2662.6,2662.4,0.74080758]
[1739770835161,0.13036534,2662.6,2662.4,4.49673758]
[1739770835933,3.49154262,2662.6,2662.4,4.49673758]
[1739770836662,3.49154262,2662.6,2662.4,0.74080758]
[1739770837036,0.8055,2662.3,2661.9,3.75671]
[1739770837358,0.13019454,2662.2,2661.9,4.49533097]
[1739770837521,0.78958405,2662.1,2661.6,4.57895]
[1739770837720,0.78958405,2662.1,2661.5,3.75723]
[1739770837721,0.8055,2661.9,2661.5,3.75723]
[1739770837924,0.8055,2661.9,2661.6,3.75713]
[1739770838126,0.12986186,2661.8,2661.5,3.75723]
[1739770838937,0.12986186,2661.8,2661.5,7.51442]
[1739770839528,0.12986186,2661.8,2661.5,3.75719]
[1739770839763,0.12986186,2661.8,2661.6,3.75713]
[1739770839967,0.03830405,2661.7,2661.5,3.75719]
[1739770840266,3.36117728,2661.7,2661.4,4.50428389]
[1739770840429,0.12986186,2661.6,2661.4,4.50428389]
[1739770840629,0.12986186,2661.6,2661.4,0.74689389]
[1739770840831,0.12986186,2661.6,2661.4,4.50426389]
[1739770841030,0.12986186,2661.6,2661.4,4.50429389]
[1739770841232,0.16816591,2661.6,2661.2,3.75761]
[1739770841528,0.03830405,2661.6,2661.2,3.75761]
[1739770841851,1.55695,2661.5,2660.9,0.8219]
[1739770842054,3.78979405,2661.4,2660.8,3.75817]
[1739770842255,3.78979405,2661.4,2660.9,0.74463764]
[1739770842256,3.91808207,2661.4,2660.9,0.74463764]
[1739770842463,3.91808207,2661.4,2660.9,4.50272764]
[1739770842839,3.16659207,2661.4,2660.9,4.50272764]
[1739770843441,3.16659207,2661.4,2660.9,0.74463764]
[1739770843640,3.16659207,2661.4,2660.9,4.50274764]
[1739770844279,3.91808207,2661.4,2660.9,0.74463764]
[1739770844443,4.66958207,2661.4,2660.9,0.74463764]
[1739770844644,4.66958207,2661.4,2660.8,3.75819]
[1739770845054,3.91808207,2661.4,2660.8,4.51997149]
[1739770845757,4.66957207,2661.4,2660.8,4.51997149]
[1739770846004,3.91808207,2661.4,2660.8,4.51997149]
[1739770846277,3.91807207,2661.4,2660.8,8.27815149]
[1739770846479,3.16659207,2661.4,2660.9,3.75812]
[1739770846783,3.12828802,2661.4,2660.9,3.75812]
[1739770846942,3.12828802,2661.4,2660.8,0.76178149]
[1739770846943,0.03830405,2661.3,2660.8,0.76178149]
[1739770847138,0.03830405,2661.3,2660.8,4.52003149]
[1739770847343,0.03830405,2661.3,2660.7,3.75839]
[1739770847344,0.7502,2661.1,2660.7,3.75839]
[1739770847545,0.03830405,2661.0,2660.7,3.75838]
[1739770847746,0.7502,2661.1,2660.5,0.8095]
[1739770847977,0.12800907,2660.9,2660.8,3.75819]
[1739770848276,0.7502,2661.1,2660.8,3.75819]
[1739770848489,0.03830405,2661.0,2660.7,0.73642389]
[1739770848782,0.16631312,2661.0,2660.7,0.73642389]
[1739770848953,0.16631312,2661.0,2660.7,4.49480389]
[1739770849355,0.16631312,2661.0,2660.7,0.73642389]
[1739770849801,0.12800907,2661.0,2660.7,0.73642389]
[1739770849961,0.12800907,2661.0,2660.7,4.49474389]
[1739770850409,0.16631312,2661.0,2660.7,4.49474389]
[1739770850582,0.16631312,2661.0,2660.7,0.73642389]
[1739770850786,0.91792312,2661.0,2660.7,0.73642389]
[1739770851169,0.16631312,2661.0,2660.7,0.73642389]
[1739770851374,0.16631312,2661.0,2660.7,4.49480389]
[1739770851599,0.16631312,2661.0,2660.7,0.73642389]
[1739770854867,0.91792312,2661.0,2660.4,3.75871]
[1739770855078,0.75162,2660.9,2660.5,0.75004797]
[1739770855279,0.16545823,2660.8,2660.5,0.75004797]
[1739770855969,0.16545823,2660.8,2660.5,4.50865797]
[1739770856196,0.12715418,2660.8,2660.5,4.50865797]
[1739770856699,0.75159,2661.0,2660.5,4.50865797]
[1739770856880,0.12715418,2660.7,2660.5,4.50865797]
[1739770857074,0.78992405,2660.9,2660.5,0.75004797]
[1739770857293,0.12715418,2660.6,2660.3,4.56838]
[1739770857487,0.12715418,2660.5,2660.3,3.75888]
[1739770857993,0.12715418,2660.4,2660.3,3.75888]
[1739770858477,1.54019405,2660.7,2660.3,0.74229612]
[1739770858679,0.12715418,2660.4,2660.3,0.74229612]
[1739770859300,0.50303418,2660.4,2660.0,0.76773423]
[1739770859508,0.8055,2660.3,2660.0,0.76773423]
[1739770859909,0.12697415,2660.2,2660.0,0.76773423]
[1739770860406,0.12697415,2660.1,2660.0,0.76773423]
[1739770860770,1.1814,2660.3,2660.0,0.76773423]
[1739770860970,0.12697415,2660.1,2660.0,0.76773423]
[1739770861197,0.03830405,2660.2,2660.0,0.76773423]
[1739770861396,0.12641588,2660.1,2660.0,0.76773423]
[1739770862593,0.03830405,2660.2,2660.0,0.76773423]
[1739770862905,0.12641588,2660.1,2660.0,0.76773423]
[1739770863072,0.12641588,2660.1,2660.0,4.52712423]
[1739770863270,0.12641588,2660.1,2660.0,0.76773423]
[1739770863516,1.18139,2660.3,2660.0,0.76773423]
[1739770863690,0.12641588,2660.1,2660.0,0.76773423]
[1739770865327,0.37594,2660.0,2659.5,3.76003]
[1739770865556,0.50233588,2660.1,2659.6,3.75993]
[1739770865732,0.12635283,2659.9,2659.7,3.75973]
[1739770865934,0.12635283,2659.9,2659.6,3.75993]
[1739770865935,0.37592,2660.1,2659.6,3.75993]
[1739770866245,0.37592,2660.1,2659.7,0.75238176]
[1739770866429,0.41422405,2660.1,2659.7,0.75238176]
[1739770867141,0.8055,2660.0,2659.7,0.75238176]
[1739770867352,0.03830405,2659.9,2659.1,4.55566]
[1739770867500,0.37597,2659.8,2659.3,3.76038]
[1739770867695,0.03830405,2659.7,2659.3,3.76038]
[1739770868350,0.12557847,2659.6,2659.3,3.76038]
[1739770868600,0.12557847,2659.6,2659.4,3.76018]
[1739770868734,0.12557847,2659.6,2659.3,3.76038]
[1739770869060,0.41426405,2659.8,2659.4,0.76753973]
[1739770869211,0.12520012,2659.5,2659.4,0.76753973]
[1739770869411,0.8055,2659.6,2659.4,0.76753973]
[1739770869631,0.50121012,2659.5,2659.0,3.76071]
[1739770869843,0.03830405,2659.4,2659.0,7.52145]
[1739770870065,3.77551133,2659.4,2658.8,3.76096]
[1739770870223,0.8055,2659.2,2658.8,3.76096]
[1739770870426,0.03830405,2659.1,2658.7,0.795]
[1739770870626,0.53953813,2659.1,2658.7,0.795]
[1739770871060,0.53953813,2659.1,2658.8,0.75496698]
[1739770871266,0.91560813,2659.1,2658.8,0.75496698]
[1739770871760,0.37608,2659.0,2658.8,0.75496698]
[1739770872253,0.12516408,2658.9,2658.8,0.75496698]
[1739770872665,0.41437405,2659.1,2658.8,0.75496698]
[1739770872859,0.12516408,2658.9,2658.8,0.75496698]
[1739770873328,0.03830405,2659.1,2658.8,0.75496698]
[1739770873722,0.41436405,2659.1,2658.8,0.75496698]
[1739770874142,0.37608,2659.0,2658.8,0.75496698]
[1739770874922,0.03830405,2659.1,2658.8,0.75496698]
[1739770875154,0.12516408,2659.0,2658.8,4.51605698]
[1739770875375,0.12516408,2659.0,2658.8,0.75496698]
[1739770876983,0.50124408,2659.0,2658.8,0.75496698]
[1739770877477,0.12516408,2659.0,2658.8,0.75496698]
[1739770878022,0.41436405,2659.1,2658.8,0.75496698]
[1739770878585,0.12421798,2659.0,2658.8,4.51598698]
[1739770878732,0.8055,2659.2,2658.8,4.51597698]
[1739770878928,4.02019728,2659.4,2658.9,3.76086]
[1739770879475,0.37606,2659.2,2658.8,0.75496698]
[1739770879770,0.41435405,2659.2,2658.8,0.75496698]
[1739770879943,0.12421798,2659.1,2658.8,0.75496698]
[1739770880477,0.12421798,2659.1,2658.8,4.51604698]
[1739770881149,0.37604,2659.3,2658.8,4.51604698]
[1739770881486,0.12421798,2659.2,2658.8,4.51604698]
[1739770881782,4.02019728,2659.4,2658.8,4.51605698]
[1739770882080,0.12421798,2659.1,2658.8,4.51605698]
[1739770882228,0.37604,2659.3,2658.8,4.51605698]
[1739770882428,0.37603,2659.3,2658.8,0.75496698]
[1739770882664,0.50027798,2659.2,2658.8,0.75496698]
[1739770883283,0.12421798,2659.2,2658.8,4.51605698]
[1739770883576,0.37603,2659.3,2658.8,4.51605698]
[1739770883731,0.12421798,2659.1,2658.8,4.51605698]
[1739770883932,3.39948133,2659.4,2658.8,0.75496698]
[1739770884275,0.12421798,2659.3,2658.9,3.76095]
[1739770884444,0.50025798,2659.3,2658.8,4.51602698]
[1739770884991,0.37605,2659.2,2658.8,0.75496698]
[1739770885331,0.50025798,2659.3,2658.8,4.51604698]
[1739770885569,0.50026798,2659.2,2658.8,4.51604698]
[1739770885951,0.12421798,2659.2,2658.8,4.51604698]
[1739770886129,0.50026798,2659.2,2658.8,4.51604698]
[1739770886464,0.12421798,2659.1,2658.8,4.51604698]
[1739770886862,0.12421798,2659.1,2659.0,7.40562566]
[1739770887243,3.36117728,2659.4,2659.1,3.76057]
[1739770887629,0.12404682,2659.3,2659.2,3.76052]
[1739770888043,3.36117728,2659.4,2659.3,3.76038]
[1739770888246,3.36117728,2659.4,2659.3,0.8083]
[1739770888566,3.36117728,2659.4,2659.2,3.76046]
[1739770888746,3.36117728,2659.4,2659.1,0.8083]
[1739770888941,0.03830405,2659.3,2658.9,0.7777]
[1739770889163,0.8055,2659.2,2658.8,3.76096]
[1739770889871,4.54269728,2659.4,2659.0,4.5225097]
[1739770890037,4.54269728,2659.4,2659.0,0.7617097]
[1739770890237,0.50036519,2659.3,2659.0,0.7617097]
[1739770890433,0.12433519,2659.3,2659.0,0.7617097]
[1739770890635,0.50036519,2659.3,2659.0,0.7617097]
[1739770891658,0.12433519,2659.3,2659.0,0.7617097]
[1739770891839,0.41436405,2659.2,2659.0,0.7617097]
[1739770892039,0.03830405,2659.2,2659.0,0.7617097]
[1739770892458,0.12433519,2659.1,2659.0,0.7617097]
[1739770892768,0.12433519,2659.1,2659.0,4.5225197]
[1739770893139,4.16667728,2659.4,2659.0,4.5225197]
[1739770893335,0.12433519,2659.1,2659.0,4.5225197]
[1739770893654,4.16667728,2659.4,2659.0,4.5225197]
[1739770894050,0.12433519,2659.3,2659.0,4.5225197]
[1739770894576,4.16667728,2659.4,2659.0,4.5224397]
[1739770894938,0.50037519,2659.3,2659.0,0.7617097]
[1739770895138,0.37604,2659.3,2659.0,0.7617097]
[1739770896975,0.37605,2659.2,2659.0,0.7617097]
[1739770897150,4.16667728,2659.4,2658.4,4.53935]
[1739770897151,0.3761,2658.9,2658.4,4.53935]
[1739770897339,0.3761,2658.9,2657.7,5.5168909]
[1739770897340,0.3761,2658.8,2658.2,4.53956]
[1739770897540,0.03830405,2658.7,2658.3,0.7637997]
[1739770897740,0.41443405,2658.7,2658.3,0.7637997]
[1739770897941,0.41443405,2658.7,2658.3,4.5255097]
[1739770897942,0.03830405,2658.7,2658.3,4.5255097]
[1739770898142,0.12413696,2658.6,2658.3,4.5255097]
[1739770898447,0.50027696,2658.6,2657.9,3.76228]
[1739770898643,0.8055,2658.5,2658.2,0.76643557]
[1739770898841,0.84380405,2658.5,2658.2,0.76643557]
[1739770899278,0.12413696,2658.4,2658.2,0.76643557]
[1739770899540,0.41448405,2658.3,2658.0,0.75476244]
[1739770899958,0.12413696,2658.2,2658.0,0.75476244]
[1739770900199,0.03830405,2658.3,2658.0,0.75476244]
[1739770900495,0.12413696,2658.2,2658.0,0.75476244]
[1739770901000,0.03830405,2658.4,2658.1,3.76205]
[1739770901296,3.36117728,2658.7,2658.3,3.76169]
[1739770901437,3.64417728,2658.7,2658.3,3.7618]
[1739770902341,0.283,2658.9,2658.4,3.76154]
[1739770902556,0.283,2658.9,2658.2,0.7777]
[1739770902877,0.8055,2659.1,2658.7,3.76114]
[1739770903381,1.21987405,2659.1,2658.6,3.76137]
[1739770903798,1.21987405,2659.1,2658.6,3.76129]
[1739770904001,1.18157,2659.1,2658.6,3.76127]
[1739770904444,1.21987405,2659.1,2658.6,7.52255]
[1739770904640,0.8055,2659.1,2658.7,3.76119]
[1739770904867,0.8055,2659.1,2658.8,3.76096]
[1739770905057,0.283,2659.3,2658.8,4.21081704]
[1739770905264,0.03830405,2659.2,2658.8,0.44985704]
[1739770905501,0.03830405,2659.2,2658.8,3.76109]
[1739770905655,0.03830405,2659.2,2658.7,0.7782]
[1739770905863,0.37607,2659.1,2658.6,0.73761044]
[1739770906207,0.7836,2658.9,2658.6,0.73761044]
[1739770906365,0.03830405,2658.8,2658.6,0.73761044]
[1739770906573,0.03830405,2658.8,2658.5,3.0]
[1739770907184,0.7836,2660.1,2659.5,3.76003]
[1739770907378,0.49492585,2660.0,2659.5,3.76001]
[1739770908053,0.49492585,2660.0,2659.5,3.76005]
[1739770908368,0.82190405,2659.9,2659.1,0.7782]
[1739770908568,0.37599,2659.6,2658.9,3.76082]
[1739770908774,0.49499585,2659.5,2658.9,3.76082]
[1739770909083,0.5332999,2659.5,2658.9,3.76082]
[1739770909607,0.1572899,2659.5,2658.9,3.76082]
[1739770909753,0.1572899,2659.5,2658.8,1.54127126]
[1739770909949,0.37603,2659.4,2658.9,3.76085]
[1739770910156,0.03830405,2659.3,2658.9,3.76085]
[1739770911055,0.41431405,2659.5,2658.9,3.76083]
[1739770911411,0.11898585,2659.4,2659.0,3.76077]
[1739770911557,0.03830405,2659.5,2659.0,3.76077]
[1739770911759,0.11898585,2659.4,2659.0,3.76077]
[1739770912060,0.37602,2659.4,2658.9,6.76095]
[1739770912279,0.03830405,2659.3,2658.9,6.76095]
[1739770912463,0.41434405,2659.3,2658.9,3.0]
[1739770912854,0.7696,2659.2,2658.9,3.0]
[1739770913589,0.11898585,2659.1,2658.9,6.76093]
[1739770913885,0.11898585,2659.1,2658.9,3.0]
[1739770914667,0.11898585,2659.1,2658.9,6.76087]
[1739770914996,0.11898585,2659.1,2658.8,3.76307126]
[1739770915197,0.11898585,2659.1,2658.8,7.52416126]
[1739770915804,0.11898585,2659.1,2658.9,3.76092]
[1739770916165,0.11898585,2659.1,2658.8,7.52416126]
[1739770916365,0.11898585,2659.1,2658.8,3.76307126]
[1739770916591,0.11898585,2659.1,2658.8,7.52408126]
[1739770917702,3.48016313,2659.1,2658.9,3.76087]
[1739770918075,3.48016313,2659.1,2659.0,7.40562566]
[1739770918370,3.48016313,2659.1,2659.0,3.64481566]
[1739770918793,3.48016313,2659.1,2659.0,7.40562566]
[1739770918988,3.36117728,2659.1,2659.0,7.40562566]
[1739770919193,3.48016313,2659.1,2659.0,7.40562566]
[1739770919501,3.48016313,2659.1,2659.0,3.64481566]
[1739770920016,3.48016313,2659.1,2658.8,3.76307126]